[Event "January 2 Early 2024"]
[Site "https://www.chess.com"]
[Date "2024.01.02"]
[Round "1"]
[White "Skibbe, Willi"]
[Black "Hammer, Jon Ludvig"]
[Result "0-1"]
[Board "132"]
[TimeControl "180+1"]
[WhiteFideId "4682190"]
[BlackFideId "1503707"]
[WhiteElo "2401"]
[BlackElo "2775"]
[WhiteTeam "GER"]
[BlackTeam "NOR"]
[WhiteClock "0:00:00"]
[BlackClock "0:00:09"]

1. c4 {[%clk 0:02:54]}  e5 {[%clk 0:02:55]} 2. Nc3 {[%clk 0:02:51]}  Nf6 {[%clk 0:02:21]} 3. Nf3 {[%clk 0:02:50]}  Nc6 {[%clk 0:02:20]} 4. g3 {[%clk 0:02:49]}  Bb4 {[%clk 0:02:18]} 5. Nd5 {[%clk 0:02:48]}  Bc5 {[%clk 0:02:00]} 6. Bg2 {[%clk 0:02:32]}  d6 {[%clk 0:01:52]} 7. O-O {[%clk 0:02:26]}  O-O {[%clk 0:01:41]} 8. e3 {[%clk 0:02:08]}  Bb6 {[%clk 0:01:25]} 9. d4 {[%clk 0:01:42]}  Bg4 {[%clk 0:01:23]} 10. Nxb6 {[%clk 0:01:37]}  axb6 {[%clk 0:01:23]} 11. d5 {[%clk 0:01:36]}  e4 {[%clk 0:00:57]} 12. dxc6 {[%clk 0:01:33]}  bxc6 {[%clk 0:00:58]} 13. h3 {[%clk 0:01:22]}  Bxf3 {[%clk 0:00:41]} 14. Bxf3 {[%clk 0:01:22]}  exf3 {[%clk 0:00:42]} 15. Qxf3 {[%clk 0:01:21]}  Qd7 {[%clk 0:00:33]} 16. Kg2 {[%clk 0:01:07]}  Rae8 {[%clk 0:00:32]} 17. b3 {[%clk 0:01:03]}  Ne4 {[%clk 0:00:32]} 18. Rd1 {[%clk 0:01:00]}  f5 {[%clk 0:00:29]} 19. Bb2 {[%clk 0:00:59]}  Qf7 {[%clk 0:00:26]} 20. a4 {[%clk 0:00:54]}  g5 {[%clk 0:00:20]} 21. a5 {[%clk 0:00:35]}  bxa5 {[%clk 0:00:21]} 22. Rxa5 {[%clk 0:00:34]}  Qg6 {[%clk 0:00:22]} 23. Ra7 {[%clk 0:00:23]}  Rf7 {[%clk 0:00:22]} 24. Rda1 {[%clk 0:00:21]}  g4 {[%clk 0:00:19]} 25. Qf4 {[%clk 0:00:22]}  gxh3+ {[%clk 0:00:12]} 26. Kxh3 {[%clk 0:00:22]}  Qg4+ {[%clk 0:00:06]} 27. Kg2 {[%clk 0:00:22]}  Qxf4 {[%clk 0:00:06]} 28. gxf4 {[%clk 0:00:19]}  Rb8 {[%clk 0:00:06]} 29. R1a3 {[%clk 0:00:18]}  c5 {[%clk 0:00:05]} 30. f3 {[%clk 0:00:17]}  Nd2 {[%clk 0:00:05]} 31. Ra8 {[%clk 0:00:16]}  Rff8 {[%clk 0:00:05]} 32. R8a7 {[%clk 0:00:14]}  Rfc8 {[%clk 0:00:04]} 33. R3a6 {[%clk 0:00:11]}  Rxb3 {[%clk 0:00:03]} 34. Bf6 {[%clk 0:00:12]}  Nxc4 {[%clk 0:00:03]} 35. Rc6 {[%clk 0:00:11]}  Nxe3+ {[%clk 0:00:03]} 36. Kf2 {[%clk 0:00:10]}  Nd5 {[%clk 0:00:03]} 37. Ba1 {[%clk 0:00:07]}  Kf8 {[%clk 0:00:04]} 38. Rca6 {[%clk 0:00:06]}  Ke8 {[%clk 0:00:04]} 39. Ra8 {[%clk 0:00:06]}  Rbb8 {[%clk 0:00:04]} 40. Rxb8 {[%clk 0:00:06]}  Rxb8 {[%clk 0:00:05]} 41. Ra2 {[%clk 0:00:06]}  Kd7 {[%clk 0:00:06]} 42. Re2 {[%clk 0:00:06]}  Ra8 {[%clk 0:00:06]} 43. Bb2 {[%clk 0:00:05]}  Nxf4 {[%clk 0:00:06]} 44. Rd2 {[%clk 0:00:05]}  Ra2 {[%clk 0:00:06]} 45. Ke3 {[%clk 0:00:05]}  Ne6 {[%clk 0:00:07]} 46. f4 {[%clk 0:00:05]}  Nd4 {[%clk 0:00:07]} 47. Rh2 {[%clk 0:00:04]}  Kc6 {[%clk 0:00:07]} 48. Kd3 {[%clk 0:00:03]}  Ne6 {[%clk 0:00:07]} 49. Kc4 {[%clk 0:00:04]}  Nxf4 {[%clk 0:00:07]} 50. Kb3 {[%clk 0:00:04]}  Ra6 {[%clk 0:00:06]} 51. Rf2 {[%clk 0:00:05]}  Rb6+ {[%clk 0:00:07]} 52. Kc4 {[%clk 0:00:04]}  d5+ {[%clk 0:00:07]} 53. Kc3 {[%clk 0:00:04]}  d4+ {[%clk 0:00:07]} 54. Kc2 {[%clk 0:00:03]}  Nd5 {[%clk 0:00:08]} 55. Rxf5 {[%clk 0:00:00]}  Ne3+ {[%clk 0:00:09]} 0-1

[Event "January 2 Early 2024"]
[Site "https://www.chess.com"]
[Date "2024.01.02"]
[Round "1"]
[White "Tiarks, Jann-Christian"]
[Black "Kosteniuk, Alexandra"]
[Result "0-1"]
[Board "134"]
[TimeControl "180+1"]
[WhiteFideId "12951595"]
[BlackFideId "4128125"]
[WhiteElo "2400"]
[BlackElo "2771"]
[WhiteTeam "GER"]
[BlackTeam "SUI"]
[WhiteClock "0:01:25"]
[BlackClock "0:02:06"]

1. e4 {[%clk 0:02:53]}  c6 {[%clk 0:03:00]} 2. Nf3 {[%clk 0:02:44]}  d5 {[%clk 0:03:01]} 3. exd5 {[%clk 0:02:43]}  cxd5 {[%clk 0:03:01]} 4. Ne5 {[%clk 0:02:44]}  Nf6 {[%clk 0:02:48]} 5. Bb5+ {[%clk 0:02:42]}  Nbd7 {[%clk 0:02:45]} 6. d4 {[%clk 0:02:40]}  a6 {[%clk 0:02:44]} 7. Bd3 {[%clk 0:02:40]}  Nxe5 {[%clk 0:02:38]} 8. dxe5 {[%clk 0:02:39]}  Ng4 {[%clk 0:02:38]} 9. Bf4 {[%clk 0:02:21]}  h5 {[%clk 0:02:34]} 10. h3 {[%clk 0:02:15]}  Nh6 {[%clk 0:02:28]} 11. Qxh5 {[%clk 0:02:09]}  Qb6 {[%clk 0:02:25]} 12. O-O {[%clk 0:01:59]}  Be6 {[%clk 0:02:20]} 13. Qe2 {[%clk 0:01:51]}  g5 {[%clk 0:02:16]} 14. Bc1 {[%clk 0:01:42]}  g4 {[%clk 0:02:14]} 15. h4 {[%clk 0:01:40]}  g3 {[%clk 0:02:15]} 16. Nc3 {[%clk 0:01:33]}  Ng4 {[%clk 0:02:08]} 17. Na4 {[%clk 0:01:28]}  gxf2+ {[%clk 0:02:07]} 18. Kh1 {[%clk 0:01:25]}  Rxh4# {[%clk 0:02:06]} 0-1

[Event "January 2 Early 2024"]
[Site "https://www.chess.com"]
[Date "2024.01.02"]
[Round "1"]
[White "Munkhgal, Gombosuren"]
[Black "Schuh, Karsten"]
[Result "1-0"]
[Board "137"]
[TimeControl "180+1"]
[WhiteFideId "4901266"]
[BlackFideId "4637950"]
[WhiteElo "2762"]
[BlackElo "2400"]
[WhiteTeam "MGL"]
[BlackTeam "GER"]
[WhiteClock "0:00:21"]
[BlackClock "0:00:26"]

1. e4 {[%clk 0:03:00]}  c5 {[%clk 0:02:01]} 2. b4 {[%clk 0:03:00]}  cxb4 {[%clk 0:01:59]} 3. d4 {[%clk 0:02:59]}  d5 {[%clk 0:01:59]} 4. exd5 {[%clk 0:02:59]}  Nf6 {[%clk 0:01:57]} 5. a3 {[%clk 0:02:51]}  Qxd5 {[%clk 0:01:50]} 6. axb4 {[%clk 0:02:21]}  Nc6 {[%clk 0:01:49]} 7. Nf3 {[%clk 0:02:18]}  Bg4 {[%clk 0:01:47]} 8. c4 {[%clk 0:02:09]}  Qe4+ {[%clk 0:01:41]} 9. Be2 {[%clk 0:02:08]}  e6 {[%clk 0:01:30]} 10. O-O {[%clk 0:02:03]}  Bxb4 {[%clk 0:01:28]} 11. h3 {[%clk 0:01:34]}  Bf5 {[%clk 0:01:19]} 12. Ba3 {[%clk 0:01:13]}  O-O {[%clk 0:01:14]} 13. Bxb4 {[%clk 0:01:07]}  Nxb4 {[%clk 0:01:14]} 14. Nc3 {[%clk 0:01:06]}  Qc2 {[%clk 0:01:14]} 15. Nh4 {[%clk 0:00:54]}  Qxd1 {[%clk 0:01:08]} 16. Rfxd1 {[%clk 0:00:50]}  Bg6 {[%clk 0:01:07]} 17. Nxg6 {[%clk 0:00:50]}  hxg6 {[%clk 0:01:07]} 18. Bf3 {[%clk 0:00:42]}  Nc6 {[%clk 0:01:07]} 19. d5 {[%clk 0:00:40]}  exd5 {[%clk 0:01:07]} 20. cxd5 {[%clk 0:00:41]}  Ne5 {[%clk 0:01:07]} 21. Be2 {[%clk 0:00:35]}  Rac8 {[%clk 0:01:06]} 22. Nb5 {[%clk 0:00:34]}  a6 {[%clk 0:01:05]} 23. Nd6 {[%clk 0:00:34]}  Rc7 {[%clk 0:01:05]} 24. f4 {[%clk 0:00:34]}  Ned7 {[%clk 0:01:01]} 25. Bf3 {[%clk 0:00:31]}  Rd8 {[%clk 0:00:57]} 26. Rdc1 {[%clk 0:00:31]}  Nc5 {[%clk 0:00:55]} 27. Nxb7 {[%clk 0:00:27]}  Rxb7 {[%clk 0:00:53]} 28. Rxc5 {[%clk 0:00:27]}  Rb6 {[%clk 0:00:54]} 29. Rc6 {[%clk 0:00:26]}  Rdb8 {[%clk 0:00:45]} 30. Rxa6 {[%clk 0:00:26]}  Rb1+ {[%clk 0:00:44]} 31. Kh2 {[%clk 0:00:26]}  R8b5 {[%clk 0:00:43]} 32. Rc8+ {[%clk 0:00:23]}  Kh7 {[%clk 0:00:43]} 33. Raa8 {[%clk 0:00:24]}  g5 {[%clk 0:00:38]} 34. f5 {[%clk 0:00:24]}  g6 {[%clk 0:00:37]} 35. Rc7 {[%clk 0:00:22]}  Rb7 {[%clk 0:00:26]} 36. d6 {[%clk 0:00:21]} 1-0

[Event "January 2 Early 2024"]
[Site "https://www.chess.com"]
[Date "2024.01.02"]
[Round "1"]
[White "Batbold, Nyamsuren"]
[Black "Manelyuk, Daniil"]
[Result "1-0"]
[Board "138"]
[TimeControl "180+1"]
[WhiteFideId "4903331"]
[BlackFideId "44173920"]
[WhiteElo "2398"]
[BlackElo "2761"]
[WhiteTeam "MGL"]
[BlackTeam "RUS"]
[WhiteClock "0:00:17"]
[BlackClock "0:00:07"]

1. Nf3 {[%clk 0:02:59]}  c5 {[%clk 0:02:59]} 2. b3 {[%clk 0:02:59]}  Nc6 {[%clk 0:02:56]} 3. Bb2 {[%clk 0:03:00]}  d6 {[%clk 0:02:57]} 4. g3 {[%clk 0:03:00]}  e5 {[%clk 0:02:56]} 5. Bg2 {[%clk 0:03:00]}  g6 {[%clk 0:02:57]} 6. c4 {[%clk 0:03:00]}  Bg7 {[%clk 0:02:57]} 7. Nc3 {[%clk 0:03:01]}  Nge7 {[%clk 0:02:58]} 8. O-O {[%clk 0:03:02]}  O-O {[%clk 0:02:58]} 9. d3 {[%clk 0:03:01]}  Be6 {[%clk 0:02:55]} 10. Rb1 {[%clk 0:02:57]}  h6 {[%clk 0:02:49]} 11. a3 {[%clk 0:02:54]}  d5 {[%clk 0:02:48]} 12. cxd5 {[%clk 0:02:53]}  Nxd5 {[%clk 0:02:46]} 13. Nd2 {[%clk 0:02:54]}  b6 {[%clk 0:02:34]} 14. Nc4 {[%clk 0:02:50]}  Re8 {[%clk 0:02:29]} 15. Nxd5 {[%clk 0:02:38]}  Bxd5 {[%clk 0:02:28]} 16. Ne3 {[%clk 0:02:38]}  Bxg2 {[%clk 0:02:26]} 17. Kxg2 {[%clk 0:02:39]}  Nd4 {[%clk 0:02:18]} 18. b4 {[%clk 0:02:38]}  cxb4 {[%clk 0:02:15]} 19. axb4 {[%clk 0:02:39]}  b5 {[%clk 0:02:15]} 20. Kg1 {[%clk 0:02:22]}  Qd6 {[%clk 0:02:15]} 21. Bxd4 {[%clk 0:02:19]}  exd4 {[%clk 0:02:14]} 22. Ng2 {[%clk 0:02:19]}  Rac8 {[%clk 0:02:08]} 23. Qd2 {[%clk 0:02:18]}  Rc3 {[%clk 0:02:05]} 24. h4 {[%clk 0:02:11]}  Rec8 {[%clk 0:02:03]} 25. Rb2 {[%clk 0:02:04]}  Qc6 {[%clk 0:01:54]} 26. Ra1 {[%clk 0:02:01]}  Rc1+ {[%clk 0:01:48]} 27. Rxc1 {[%clk 0:01:57]}  Qxc1+ {[%clk 0:01:49]} 28. Qxc1 {[%clk 0:01:58]}  Rxc1+ {[%clk 0:01:50]} 29. Kh2 {[%clk 0:01:59]}  Be5 {[%clk 0:01:43]} 30. Ra2 {[%clk 0:01:55]}  Rb1 {[%clk 0:01:42]} 31. Rxa7 {[%clk 0:01:51]}  Rxb4 {[%clk 0:01:42]} 32. Re7 {[%clk 0:01:38]}  Bf6 {[%clk 0:01:05]} 33. Re8+ {[%clk 0:01:36]}  Kg7 {[%clk 0:01:00]} 34. Nf4 {[%clk 0:01:37]}  Rb2 {[%clk 0:00:55]} 35. Kg2 {[%clk 0:01:21]}  b4 {[%clk 0:00:54]} 36. Kf3 {[%clk 0:01:21]}  b3 {[%clk 0:00:53]} 37. Rb8 {[%clk 0:01:22]}  Rb1 {[%clk 0:00:51]} 38. h5 {[%clk 0:00:59]}  g5 {[%clk 0:00:40]} 39. Nd5 {[%clk 0:00:58]}  Be5 {[%clk 0:00:40]} 40. Rb5 {[%clk 0:00:57]}  b2 {[%clk 0:00:37]} 41. Ke4 {[%clk 0:00:56]}  Bd6 {[%clk 0:00:37]} 42. Kxd4 {[%clk 0:00:54]}  Ba3 {[%clk 0:00:37]} 43. Nc3 {[%clk 0:00:53]}  Rc1 {[%clk 0:00:36]} 44. e4 {[%clk 0:00:27]}  Kf6 {[%clk 0:00:32]} 45. Rb3 {[%clk 0:00:26]}  Bd6 {[%clk 0:00:28]} 46. Rb6 {[%clk 0:00:21]}  Ke6 {[%clk 0:00:20]} 47. e5 {[%clk 0:00:16]}  b1=Q {[%clk 0:00:17]} 48. Nxb1 {[%clk 0:00:15]}  Kd7 {[%clk 0:00:14]} 49. Rxd6+ {[%clk 0:00:15]}  Ke7 {[%clk 0:00:14]} 50. Nc3 {[%clk 0:00:16]}  f6 {[%clk 0:00:15]} 51. Nd5+ {[%clk 0:00:16]}  Kf7 {[%clk 0:00:14]} 52. Rxf6+ {[%clk 0:00:17]}  Kg7 {[%clk 0:00:15]} 53. Rg6+ {[%clk 0:00:17]}  Kh7 {[%clk 0:00:07]} 54. Nf6+ {[%clk 0:00:17]} 1-0

[Event "January 2 Early 2024"]
[Site "https://www.chess.com"]
[Date "2024.01.02"]
[Round "1"]
[White "Bardyk, Artem"]
[Black "Cruz Ravina, Francisco Javier"]
[Result "1-0"]
[Board "139"]
[TimeControl "180+1"]
[WhiteFideId "34349979"]
[BlackFideId "2228939"]
[WhiteElo "2756"]
[BlackElo "2398"]
[WhiteTeam "RUS"]
[BlackTeam "ESP"]
[WhiteClock "0:00:08"]
[BlackClock "0:00:00"]

1. e4 {[%clk 0:03:00]}  d5 {[%clk 0:02:59]} 2. exd5 {[%clk 0:03:00]}  Nf6 {[%clk 0:02:59]} 3. Bb5+ {[%clk 0:03:00]}  Nbd7 {[%clk 0:02:58]} 4. d4 {[%clk 0:02:57]}  Nxd5 {[%clk 0:02:58]} 5. Nf3 {[%clk 0:02:56]}  e6 {[%clk 0:02:58]} 6. O-O {[%clk 0:02:56]}  Be7 {[%clk 0:02:58]} 7. Re1 {[%clk 0:02:55]}  O-O {[%clk 0:02:57]} 8. Bf1 {[%clk 0:02:42]}  b6 {[%clk 0:02:56]} 9. c4 {[%clk 0:02:41]}  N5f6 {[%clk 0:02:56]} 10. Nc3 {[%clk 0:02:41]}  Bb7 {[%clk 0:02:56]} 11. Bf4 {[%clk 0:02:38]}  a6 {[%clk 0:02:53]} 12. Ne5 {[%clk 0:02:30]}  Nxe5 {[%clk 0:02:47]} 13. Bxe5 {[%clk 0:02:28]}  Bd6 {[%clk 0:02:45]} 14. Bd3 {[%clk 0:02:21]}  Bxe5 {[%clk 0:02:43]} 15. dxe5 {[%clk 0:02:22]}  Nd7 {[%clk 0:02:42]} 16. Qe2 {[%clk 0:02:17]}  Qe7 {[%clk 0:02:33]} 17. Rad1 {[%clk 0:02:11]}  Rfd8 {[%clk 0:02:32]} 18. Be4 {[%clk 0:02:09]}  Bxe4 {[%clk 0:02:30]} 19. Qxe4 {[%clk 0:02:10]}  Nc5 {[%clk 0:02:26]} 20. Qc6 {[%clk 0:02:08]}  Rxd1 {[%clk 0:02:19]} 21. Rxd1 {[%clk 0:02:09]}  Rd8 {[%clk 0:02:17]} 22. g3 {[%clk 0:01:40]}  h5 {[%clk 0:02:07]} 23. h4 {[%clk 0:01:36]}  Rxd1+ {[%clk 0:01:55]} 24. Nxd1 {[%clk 0:01:37]}  Qd7 {[%clk 0:01:54]} 25. Qxd7 {[%clk 0:01:30]}  Nxd7 {[%clk 0:01:53]} 26. f4 {[%clk 0:01:31]}  g6 {[%clk 0:01:50]} 27. Kf2 {[%clk 0:01:29]}  Kf8 {[%clk 0:01:49]} 28. Ke3 {[%clk 0:01:30]}  Ke7 {[%clk 0:01:47]} 29. Kd4 {[%clk 0:01:29]}  f5 {[%clk 0:01:37]} 30. Nf2 {[%clk 0:01:01]}  c5+ {[%clk 0:01:35]} 31. Kc3 {[%clk 0:00:58]}  Nb8 {[%clk 0:01:35]} 32. a3 {[%clk 0:00:48]}  Nc6 {[%clk 0:01:32]} 33. b4 {[%clk 0:00:48]}  Nd4 {[%clk 0:01:20]} 34. bxc5 {[%clk 0:00:47]}  bxc5 {[%clk 0:01:20]} 35. Nd3 {[%clk 0:00:48]}  Ne2+ {[%clk 0:01:19]} 36. Kd2 {[%clk 0:00:48]}  Nxg3 {[%clk 0:01:16]} 37. Nxc5 {[%clk 0:00:48]}  a5 {[%clk 0:00:57]} 38. Ke3 {[%clk 0:00:46]}  Nf1+ {[%clk 0:00:54]} 39. Ke2 {[%clk 0:00:43]}  Nh2 {[%clk 0:00:41]} 40. Nb7 {[%clk 0:00:41]}  Kd7 {[%clk 0:00:38]} 41. Nxa5 {[%clk 0:00:41]}  Kc7 {[%clk 0:00:36]} 42. Nb3 {[%clk 0:00:40]}  Ng4 {[%clk 0:00:34]} 43. Nd4 {[%clk 0:00:40]}  Kd7 {[%clk 0:00:34]} 44. a4 {[%clk 0:00:39]}  g5 {[%clk 0:00:34]} 45. hxg5 {[%clk 0:00:36]}  h4 {[%clk 0:00:34]} 46. g6 {[%clk 0:00:30]}  h3 {[%clk 0:00:34]} 47. g7 {[%clk 0:00:30]}  h2 {[%clk 0:00:19]} 48. g8=Q {[%clk 0:00:30]}  h1=Q {[%clk 0:00:18]} 49. Qf7+ {[%clk 0:00:17]}  Kc8 {[%clk 0:00:11]} 50. Qxe6+ {[%clk 0:00:09]}  Kb7 {[%clk 0:00:11]} 51. Qd7+ {[%clk 0:00:07]}  Kb6 {[%clk 0:00:11]} 52. Qb5+ {[%clk 0:00:05]}  Kc7 {[%clk 0:00:10]} 53. Ne6+ {[%clk 0:00:06]}  Kc8 {[%clk 0:00:09]} 54. Qe8+ {[%clk 0:00:07]}  Kb7 {[%clk 0:00:09]} 55. Qd7+ {[%clk 0:00:07]}  Kb8 {[%clk 0:00:07]} 56. Qd8+ {[%clk 0:00:08]}  Kb7 {[%clk 0:00:07]} 57. Qc7+ {[%clk 0:00:08]}  Ka8 {[%clk 0:00:06]} 58. Qc8+ {[%clk 0:00:08]}  Ka7 {[%clk 0:00:06]} 59. Qd7+ {[%clk 0:00:08]}  Ka8 {[%clk 0:00:06]} 60. Qd5+ {[%clk 0:00:07]}  Qxd5 {[%clk 0:00:00]} 61. cxd5 {[%clk 0:00:08]} 1-0

[Event "January 2 Early 2024"]
[Site "https://www.chess.com"]
[Date "2024.01.02"]
[Round "1"]
[White "Agrest, Inna"]
[Black "Wagner, Dennis"]
[Result "0-1"]
[Board "140"]
[TimeControl "180+1"]
[WhiteFideId "1708830"]
[BlackFideId "24650684"]
[WhiteElo "2396"]
[BlackElo "2755"]
[WhiteTeam "SWE"]
[BlackTeam "GER"]
[WhiteClock "0:00:00"]
[BlackClock "0:00:06"]

1. e4 {[%clk 0:03:00]}  e5 {[%clk 0:02:59]} 2. Nf3 {[%clk 0:03:00]}  Nc6 {[%clk 0:03:00]} 3. Bb5 {[%clk 0:03:01]}  a6 {[%clk 0:03:00]} 4. Ba4 {[%clk 0:03:01]}  Nf6 {[%clk 0:03:01]} 5. O-O {[%clk 0:03:00]}  Be7 {[%clk 0:03:01]} 6. Re1 {[%clk 0:02:58]}  b5 {[%clk 0:03:01]} 7. Bb3 {[%clk 0:02:58]}  O-O {[%clk 0:03:02]} 8. h3 {[%clk 0:02:58]}  Bb7 {[%clk 0:03:01]} 9. d3 {[%clk 0:02:54]}  d5 {[%clk 0:03:01]} 10. Nbd2 {[%clk 0:02:42]}  dxe4 {[%clk 0:02:56]} 11. dxe4 {[%clk 0:02:41]}  Bd6 {[%clk 0:02:55]} 12. c3 {[%clk 0:02:39]}  Na5 {[%clk 0:02:50]} 13. Bc2 {[%clk 0:02:38]}  c5 {[%clk 0:02:50]} 14. Nh4 {[%clk 0:02:19]}  g6 {[%clk 0:02:40]} 15. Nf1 {[%clk 0:02:00]}  Nc4 {[%clk 0:02:26]} 16. b3 {[%clk 0:01:45]}  Nb6 {[%clk 0:02:26]} 17. Bh6 {[%clk 0:01:36]}  Re8 {[%clk 0:02:25]} 18. Qf3 {[%clk 0:01:36]}  Nfd5 {[%clk 0:01:53]} 19. Nf5 {[%clk 0:01:15]}  Nf4 {[%clk 0:01:47]} 20. Nxd6 {[%clk 0:01:07]}  Qxd6 {[%clk 0:01:45]} 21. Rad1 {[%clk 0:01:01]}  Qf6 {[%clk 0:01:40]} 22. Ne3 {[%clk 0:00:46]}  Qh4 {[%clk 0:01:11]} 23. Bxf4 {[%clk 0:00:36]}  exf4 {[%clk 0:01:11]} 24. Nd5 {[%clk 0:00:28]}  Nxd5 {[%clk 0:01:06]} 25. exd5 {[%clk 0:00:29]}  Rxe1+ {[%clk 0:00:40]} 26. Rxe1 {[%clk 0:00:29]}  Rd8 {[%clk 0:00:38]} 27. c4 {[%clk 0:00:29]}  bxc4 {[%clk 0:00:38]} 28. bxc4 {[%clk 0:00:29]}  a5 {[%clk 0:00:39]} 29. Re4 {[%clk 0:00:20]}  Qf6 {[%clk 0:00:24]} 30. Rxf4 {[%clk 0:00:20]}  Qa1+ {[%clk 0:00:24]} 31. Kh2 {[%clk 0:00:20]}  Rf8 {[%clk 0:00:24]} 32. Ba4 {[%clk 0:00:15]}  Qxa2 {[%clk 0:00:21]} 33. Bc6 {[%clk 0:00:15]}  Bxc6 {[%clk 0:00:19]} 34. dxc6 {[%clk 0:00:15]}  Qb2 {[%clk 0:00:19]} 35. c7 {[%clk 0:00:14]}  Qe5 {[%clk 0:00:19]} 36. g3 {[%clk 0:00:07]}  Qxc7 {[%clk 0:00:20]} 37. Qd5 {[%clk 0:00:07]}  a4 {[%clk 0:00:19]} 38. Rf6 {[%clk 0:00:05]}  Rd8 {[%clk 0:00:18]} 39. Qf3 {[%clk 0:00:03]}  Qe7 {[%clk 0:00:11]} 40. Rc6 {[%clk 0:00:02]}  Rd4 {[%clk 0:00:08]} 41. Rc8+ {[%clk 0:00:02]}  Kg7 {[%clk 0:00:09]} 42. Qa8 {[%clk 0:00:01]}  Rd2 {[%clk 0:00:05]} 43. Rg8+ {[%clk 0:00:00]}  Kf6 {[%clk 0:00:06]} 0-1

[Event "January 2 Early 2024"]
[Site "https://www.chess.com"]
[Date "2024.01.02"]
[Round "1"]
[White "Oganian, Miran"]
[Black "Mohammed, Zozek Salah Mohammed"]
[Result "1-0"]
[Board "145"]
[TimeControl "180+1"]
[WhiteFideId "4122488"]
[BlackFideId "4803361"]
[WhiteElo "2749"]
[BlackElo "2390"]
[WhiteTeam "RUS"]
[BlackTeam "IRQ"]
[WhiteClock "0:01:17"]
[BlackClock "0:01:14"]

1. e4 {[%clk 0:02:59]}  e6 {[%clk 0:02:59]} 2. d4 {[%clk 0:02:59]}  d5 {[%clk 0:02:59]} 3. Nc3 {[%clk 0:02:58]}  Nf6 {[%clk 0:02:57]} 4. Bd3 {[%clk 0:02:56]}  c5 {[%clk 0:02:41]} 5. exd5 {[%clk 0:02:55]}  Nxd5 {[%clk 0:02:39]} 6. Nf3 {[%clk 0:02:53]}  Nxc3 {[%clk 0:02:37]} 7. bxc3 {[%clk 0:02:52]}  Be7 {[%clk 0:02:37]} 8. O-O {[%clk 0:02:52]}  O-O {[%clk 0:02:34]} 9. Qe2 {[%clk 0:02:52]}  Nc6 {[%clk 0:02:32]} 10. Rd1 {[%clk 0:02:52]}  Qa5 {[%clk 0:02:24]} 11. Bd2 {[%clk 0:02:51]}  cxd4 {[%clk 0:02:23]} 12. Nxd4 {[%clk 0:02:42]}  Nxd4 {[%clk 0:02:18]} 13. cxd4 {[%clk 0:02:42]}  Qd5 {[%clk 0:02:15]} 14. Bf4 {[%clk 0:02:12]}  Bd7 {[%clk 0:02:05]} 15. c4 {[%clk 0:02:12]}  Qa5 {[%clk 0:02:04]} 16. Be5 {[%clk 0:02:01]}  f6 {[%clk 0:01:47]} 17. Qh5 {[%clk 0:01:55]}  f5 {[%clk 0:01:39]} 18. c5 {[%clk 0:01:37]}  Bf6 {[%clk 0:01:36]} 19. Qe2 {[%clk 0:01:26]}  Bc6 {[%clk 0:01:31]} 20. Bc4 {[%clk 0:01:26]}  Rae8 {[%clk 0:01:29]} 21. Bd6 {[%clk 0:01:24]}  Bxd4 {[%clk 0:01:14]} 22. Rxd4 {[%clk 0:01:17]} 1-0

[Event "January 2 Early 2024"]
[Site "https://www.chess.com"]
[Date "2024.01.02"]
[Round "1"]
[White "Syaputra, Arifa Rizki"]
[Black "Ovezdurdyyeva, Jemal"]
[Result "0-1"]
[Board "147"]
[TimeControl "180+1"]
[WhiteFideId "7105100"]
[BlackFideId "14001888"]
[WhiteElo "2737"]
[BlackElo "2387"]
[WhiteTeam "INA"]
[BlackTeam "TKM"]
[WhiteClock "0:00:14"]
[BlackClock "0:01:09"]

1. d4 {[%clk 0:03:00]}  Nf6 {[%clk 0:02:59]} 2. Nf3 {[%clk 0:03:00]}  e6 {[%clk 0:02:57]} 3. c4 {[%clk 0:02:59]}  b6 {[%clk 0:02:56]} 4. Nc3 {[%clk 0:02:54]}  Bb7 {[%clk 0:02:56]} 5. Qc2 {[%clk 0:02:55]}  Bb4 {[%clk 0:02:56]} 6. a3 {[%clk 0:02:50]}  Bxc3+ {[%clk 0:02:54]} 7. Qxc3 {[%clk 0:02:51]}  O-O {[%clk 0:02:55]} 8. e3 {[%clk 0:02:47]}  c5 {[%clk 0:02:55]} 9. Be2 {[%clk 0:02:44]}  cxd4 {[%clk 0:02:54]} 10. exd4 {[%clk 0:02:43]}  d5 {[%clk 0:02:52]} 11. O-O {[%clk 0:02:06]}  dxc4 {[%clk 0:02:51]} 12. Bxc4 {[%clk 0:02:07]}  Bxf3 {[%clk 0:02:50]} 13. Qxf3 {[%clk 0:02:04]}  Nd5 {[%clk 0:02:48]} 14. Be3 {[%clk 0:01:53]}  Nc6 {[%clk 0:02:46]} 15. Rac1 {[%clk 0:01:54]}  Nce7 {[%clk 0:02:37]} 16. Bg5 {[%clk 0:01:46]}  Qd6 {[%clk 0:02:32]} 17. Ba6 {[%clk 0:01:32]}  Nf5 {[%clk 0:02:27]} 18. Rfd1 {[%clk 0:01:21]}  h6 {[%clk 0:02:26]} 19. Bh4 {[%clk 0:01:20]}  Nxh4 {[%clk 0:02:25]} 20. Qe4 {[%clk 0:01:16]}  Ng6 {[%clk 0:02:21]} 21. g3 {[%clk 0:01:13]}  Rfd8 {[%clk 0:02:12]} 22. h4 {[%clk 0:01:10]}  Nge7 {[%clk 0:02:09]} 23. Bd3 {[%clk 0:01:10]}  Nf6 {[%clk 0:02:04]} 24. Qf3 {[%clk 0:01:06]}  Qd5 {[%clk 0:02:02]} 25. Qe2 {[%clk 0:01:05]}  Qh5 {[%clk 0:01:57]} 26. Qe3 {[%clk 0:01:03]}  Nf5 {[%clk 0:01:55]} 27. Qe5 {[%clk 0:00:44]}  Nxd4 {[%clk 0:01:50]} 28. Qxh5 {[%clk 0:00:44]}  Nxh5 {[%clk 0:01:49]} 29. Kg2 {[%clk 0:00:45]}  Nf6 {[%clk 0:01:46]} 30. Ba6 {[%clk 0:00:44]}  e5 {[%clk 0:01:37]} 31. Rc7 {[%clk 0:00:43]}  Rd7 {[%clk 0:01:35]} 32. Rc3 {[%clk 0:00:40]}  Rad8 {[%clk 0:01:34]} 33. Re1 {[%clk 0:00:40]}  Nd5 {[%clk 0:01:30]} 34. Rd3 {[%clk 0:00:34]}  f6 {[%clk 0:01:28]} 35. Bc4 {[%clk 0:00:34]}  Kf8 {[%clk 0:01:27]} 36. Ba2 {[%clk 0:00:30]}  Ne7 {[%clk 0:01:25]} 37. Rc3 {[%clk 0:00:28]}  Rc8 {[%clk 0:01:23]} 38. Rd3 {[%clk 0:00:27]}  Rc2 {[%clk 0:01:22]} 39. Rb1 {[%clk 0:00:23]}  Rdc7 {[%clk 0:01:20]} 40. h5 {[%clk 0:00:21]}  Re2 {[%clk 0:01:15]} 41. Rbd1 {[%clk 0:00:14]}  Rxb2 {[%clk 0:01:09]} 42. Rf1 {[%clk 0:00:14]} 0-1